bitfinex-derivatives/quotes_ETHF0:USTF0_20250520
["timestamp","ask_amount","ask_price","bid_price","bid_amount"]
[1747767157980,5.24384,2455.8,2455.7,0.82028451]
[1747767158190,3.2078,2455.8,2455.7,2.85632451]
[1747767158692,3.2078,2455.8,2455.7,0.82028451]
[1747767159189,3.2078,2455.8,2455.7,2.85632451]
[1747767159492,0.814,2456.3,2455.8,0.81415]
[1747767159784,0.8141,2456.0,2455.9,0.81409]
[1747767159983,0.81415,2455.8,2455.7,0.00610451]
[1747767160380,2.85019,2455.8,2455.7,0.00610451]
[1747767161277,0.81418,2455.7,2455.6,1.3897]
[1747767161482,0.81413,2455.9,2455.8,0.81415]
[1747767161782,0.81413,2455.9,2455.8,0.81412]
[1747767161984,2.850085,2455.9,2455.8,0.81412]
[1747767162185,0.81417,2455.8,2455.7,0.81416]
[1747767162387,2.035955,2455.9,2455.2,1.3562]
[1747767162388,3.36884,2455.9,2455.2,1.3562]
[1747767162691,0.82027451,2455.8,2455.7,0.81418]
[1747767163183,2.04214451,2455.8,2455.7,0.81418]
[1747767163382,0.81422,2455.6,2455.5,2.20392]
[1747767163585,0.81422,2455.6,2455.5,2.20395]
[1747767163785,2.850425,2455.6,2455.5,1.3897]
[1747767164192,0.81434,2455.3,2455.2,0.81434]
[1747767164492,0.81435,2455.2,2455.1,0.81436]
[1747767164887,3.2078,2455.4,2455.0,16.464]
[1747767165090,4.02211,2455.4,2455.3,0.81432]
[1747767165385,5.24417001,2455.4,2455.0,16.464]
[1747767165583,5.24417001,2455.4,2455.0,2.03602]
[1747767165584,3.2078,2455.4,2455.0,2.03602]
[1747767165784,4.02211,2455.4,2455.3,0.81431]
[1747767166090,0.81435,2455.3,2455.2,0.81432]
[1747767166492,0.81435,2455.2,2455.1,1.3438]
[1747767166689,2.23995,2455.2,2455.1,1.3438]
[1747767166888,4.276485,2455.2,2455.1,2.15818]
[1747767167183,4.276485,2455.2,2455.1,1.3438]
[1747767167390,4.276485,2455.2,2455.1,2.15818]
[1747767167589,0.81441,2455.1,2455.0,0.81439]
[1747767167894,3.2078,2455.4,2455.3,0.81431]
[1747767168096,40.8,2455.6,2455.5,0.81425]
[1747767168285,0.00610451,2455.8,2455.7,0.81418]
[1747767168592,7.27609495,2455.8,2454.4,3.2078]
[1747767168891,3.2078,2455.3,2455.2,0.81432]
[1747767169395,3.2078,2455.7,2455.6,0.81422]
[1747767169693,4.02199,2455.7,2455.6,0.81422]
[1747767169894,6.05811,2455.7,2455.6,0.81422]
[1747767170389,0.81428,2455.5,2455.4,0.81425]
[1747767170985,2.85055501,2455.5,2455.3,1.3905]
[1747767171189,0.81427,2455.5,2455.4,0.81428]
[1747767171688,2.85055501,2455.5,2455.4,0.81428]
[1747767172094,0.81428,2455.4,2455.3,1.3905]
[1747767172294,4.02208,2455.4,2455.3,1.3905]
[1747767172595,6.05845001,2455.4,2455.3,1.3905]
[1747767173197,6.05845001,2455.4,2455.3,2.20481]
[1747767173490,2.85065001,2455.4,2455.3,1.3905]
[1747767173690,6.05845001,2455.4,2455.3,1.3905]
[1747767173993,7.27992001,2455.4,2454.6,5.24416]
[1747767174297,0.81446,2455.0,2454.9,0.81442]
[1747767174799,2.85116,2455.0,2454.9,0.81442]
[1747767175094,0.81445,2455.0,2454.9,0.81443]
[1747767175290,0.81445,2455.0,2454.7,3.39349]
[1747767175291,0.81448,2454.9,2454.8,0.81446]
[1747767175484,0.81444,2455.0,2454.9,0.81441]
[1747767175883,0.81444,2455.0,2453.9,0.49500638]
[1747767175884,0.81468,2454.2,2453.9,0.49500638]
[1747767176193,0.00610451,2454.4,2454.3,0.81465]
[1747767176688,0.00610451,2454.4,2454.3,12.48105]
[1747767176883,0.00610451,2454.4,2454.3,15.68885]
[1747767177099,1.16592584,2454.9,2454.8,0.81448]
[1747767177297,1.16592584,2454.9,2454.8,22.529065]
[1747767178390,1.16592584,2454.9,2454.8,27.529065]
[1747767178596,0.00610451,2455.1,2455.0,0.81441]
[1747767178797,0.00610451,2455.1,2455.0,4.02221]
[1747767178997,0.00610451,2455.1,2455.0,11.05883]
[1747767179498,2.04272451,2455.1,2455.0,0.81441]
[1747767180195,0.00610451,2455.1,2455.0,6.05883]
[1747767181096,3.2078,2455.8,2455.7,0.81418]
[1747767181289,3.2078,2455.8,2455.6,4.02201]
[1747767181597,0.8142,2455.7,2455.6,3.2078]
[1747767181899,0.81422,2455.6,2455.5,0.81425]
[1747767182197,0.81422,2455.6,2455.5,3.2078]
[1747767182395,2.850425,2455.6,2455.5,0.81425]
[1747767182598,3.21390451,2455.8,2455.7,0.81418]
[1747767182799,0.00610451,2455.8,2455.7,4.02198]
[1747767182989,0.00610451,2455.8,2455.7,6.05802]
[1747767183189,5.24994451,2455.8,2455.6,0.8142]
[1747767183396,0.81418,2455.7,2455.6,3.2078]
[1747767183702,0.81418,2455.7,2455.1,0.33222808]
[1747767183703,0.81435,2455.2,2455.1,0.33222808]
[1747767183999,4.02215,2455.2,2455.1,0.33222808]
[1747767184199,6.058685,2455.2,2455.1,3.54002808]
[1747767184695,6.058685,2455.2,2455.1,3.2078]
[1747767184901,3.2078,2455.2,2455.1,6.05871499]
[1747767185599,3.2078,2455.2,2455.1,22.52771499]
[1747767185994,1.16592584,2455.7,2455.6,0.81422]
[1747767186200,1.16592584,2455.7,2455.6,4.02202]
[1747767186396,0.00610451,2455.8,2455.7,0.81418]
[1747767186597,2.04218451,2455.8,2455.7,4.02198]
[1747767186905,0.00610451,2455.8,2455.7,6.05802]
[1747767188801,4.51e-06,2455.8,2455.7,14.26582]
[1747767189001,4.51e-06,2455.8,2455.7,11.05802]
[1747767191708,4.51e-06,2455.8,2455.7,11.30811853]
[1747767192809,4.51e-06,2455.8,2455.7,12.69931853]
[1747767193103,3.24927142,2457.0,2456.9,0.81378]
[1747767193304,3.24927142,2457.0,2455.7,49.72233853]
[1747767193305,2.08334558,2457.0,2456.4,2.03488]
[1747767193504,2.08334558,2457.0,2456.8,0.8138]
[1747767193505,4.02161,2456.9,2456.8,0.8138]
[1747767194008,6.056735,2456.9,2456.8,2.1642]
[1747767194302,5.242925,2456.9,2456.8,2.1642]
[1747767194507,3.2078,2456.9,2456.8,2.1642]
[1747767194905,3.2078,2456.9,2456.8,7.40712049]
[1747767195204,0.64444558,2457.0,2456.9,0.81378]
[1747767195395,0.64444558,2457.0,2456.9,5.37197549]
[1747767195595,0.64444558,2457.0,2456.9,7.40702048]
[1747767196104,0.00610451,2457.1,2457.0,0.81375]
[1747767196408,4.51e-06,2457.1,2457.0,22.05994549]
[1747767196609,4.51e-06,2457.1,2457.0,29.09490549]
[1747767197120,4.51e-06,2457.1,2457.0,44.27270549]
[1747767197305,9e-08,2457.6,2457.5,0.81359]
[1747767197499,0.12863108,2457.7,2457.6,4.02134549]
[1747767197696,1.29666233,2458.0,2457.9,0.81345]
[1747767197901,1.29666233,2458.0,2457.9,4.02124549]
[1747767198195,1.29666233,2458.0,2457.9,22.73946049]
[1747767199004,3.33087733,2458.0,2457.4,16.684]
[1747767199207,2.22976,2457.9,2457.7,0.8135]
[1747767199406,1.4163,2457.9,2457.7,0.81352]
[1747767199711,0.81351,2457.8,2457.6,0.81354]
[1747767199905,3.45064,2457.9,2457.6,0.81354]
[1747767200109,3.2078,2457.7,2457.2,2.8224]
[1747767200308,0.81365,2457.3,2457.2,3.20779549]
[1747767200607,3.2078,2457.4,2456.8,2.28461853]
[1747767200911,2.1404,2457.2,2457.1,0.81372]
[1747767201108,1.3267,2457.2,2457.0,0.81373]
[1747767201306,0.81374,2457.1,2456.9,1.3504]
[1747767201507,3.36166,2457.2,2456.9,1.3504]
[1747767201814,1.3558,2457.3,2457.2,0.81369]
[1747767202010,5.242595,2457.3,2457.2,4.02148549]
[1747767202210,3.2078,2457.3,2457.2,4.02148549]
[1747767202407,3.2048,2457.3,2457.2,4.02148549]
[1747767203009,4.5345,2457.6,2457.5,0.81359]
[1747767203216,0.81359,2457.5,2457.4,3.20779549]
[1747767203405,2.22029,2457.5,2457.4,4.02141549]
[1747767203602,3.44133,2457.5,2457.2,16.682]
[1747767203824,4.02147,2457.3,2457.2,0.81369]
[1747767204116,3.2078,2457.3,2457.2,0.81369]
[1747767204316,6.056245,2457.3,2457.2,0.81369]
[1747767204628,0.81371,2457.2,2457.1,0.8137]
[1747767204916,2.22039,2457.2,2457.1,3.20779549]
[1747767205215,0.81385,2456.7,2456.6,0.00610451]
[1747767205407,3.2078,2456.7,2456.6,4.02778]
[1747767205608,5.24309001,2456.7,2456.6,4.02778]
[1747767206213,6.60069001,2456.7,2456.6,4.02778]
[1747767206514,0.00610451,2456.9,2456.6,4.02778]
[1747767206817,0.00610451,2456.9,2456.8,4.02161549]
[1747767207008,0.00610451,2456.9,2456.8,5.37161549]
[1747767207306,0.00610451,2456.9,2456.8,7.40674049]
[1747767208506,2.04122951,2456.9,2456.6,0.00610451]
[1747767208711,0.81385,2456.7,2456.6,0.00610451]
[1747767209013,3.2078,2456.7,2456.6,0.81996451]
[1747767209316,5.24309001,2456.7,2456.6,0.81996451]
[1747767209522,5.24309001,2456.7,2456.6,5.39886]
[1747767209909,7.42224001,2456.7,2456.6,5.39886]
[1747767210210,4.5731,2456.7,2456.6,3.41249451]
[1747767210410,3.2078,2456.7,2456.6,2.19108451]
[1747767210604,3.2078,2456.7,2456.6,7.43417]
[1747767210811,0.00610451,2456.9,2456.8,0.81382]
[1747767211111,0.00610451,2456.9,2456.8,6.05674049]
[1747767211615,0.00610451,2456.9,2456.8,22.73974049]
[1747767216115,4.51e-06,2456.9,2456.8,22.73974049]
[1747767216419,4.51e-06,2456.9,2456.8,27.73974049]
[1747767217019,4.51e-06,2456.9,2456.8,29.14054049]
[1747767218613,4.51e-06,2456.9,2456.8,28.47954049]
[1747767218810,2.03512951,2456.9,2456.8,0.81382]
[1747767219024,2.84890951,2456.9,2456.8,0.24937912]
[1747767219822,4.21190951,2456.9,2456.8,0.24937912]
[1747767220027,3.39812951,2456.9,2456.6,0.00610451]
[1747767220323,4.02163,2456.8,2456.7,0.81383]
[1747767220621,5.38463,2456.8,2456.7,0.81383]
[1747767220821,7.41984,2456.8,2456.7,0.81383]
[1747767221025,0.81385,2456.7,2456.6,0.81996451]
[1747767221214,2.17685,2456.7,2456.6,0.81996451]
[1747767221415,4.21214001,2456.7,2456.6,0.81996451]
[1747767222119,4.51e-06,2456.9,2456.8,0.81382]
[1747767222323,4.51e-06,2456.9,2456.8,20.04361549]
[1747767222515,4.51e-06,2456.9,2456.8,22.07874049]
[1747767222823,4.51e-06,2456.9,2456.8,27.07874049]
[1747767224627,4.51e-06,2456.9,2456.8,27.41132436]
[1747767225023,4.51e-06,2456.9,2456.8,28.80232436]
[1747767226126,4.51e-06,2456.9,2456.8,32.01012436]
[1747767227422,4.51e-06,2456.9,2456.8,27.01012436]
[1747767228322,4.51e-06,2456.9,2456.8,32.01012436]
[1747767229817,2.90780451,2457.6,2457.5,0.81359]
[1747767230023,2.90780451,2457.6,2457.5,16.83359]
[1747767230232,2.90780451,2457.6,2457.5,18.868135]
[1747767230531,1.3857,2457.9,2457.8,0.81349]
[1747767230831,0.81355,2457.6,2457.5,0.81358]
[1747767231032,4.02133,2457.7,2457.6,0.81355]
[1747767231331,3.2078,2457.7,2457.6,0.81355]
[1747767231533,2.034465,2457.7,2457.6,0.81355]
[1747767231734,4.02125,2458.0,2457.9,0.81345]
[1747767231932,6.05559,2458.0,2457.9,0.81345]
[1747767232833,5.24214,2458.0,2457.9,0.81345]
[1747767233033,6.05556,2458.0,2457.9,0.81345]
[1747767234639,0.81355,2457.7,2457.6,0.81353]
[1747767234830,4.02135,2457.7,2457.6,16.83253]
[1747767235033,5.242265,2457.7,2457.6,16.83253]
[1747767236231,3.2078,2458.0,2457.9,0.81345]
[1747767236534,4.51e-06,2458.1,2458.0,4.02121549]
[1747767236721,4.51e-06,2458.1,2458.0,19.09901549]
[1747767237031,0.31418035,2458.5,2458.4,4.02108549]
[1747767237226,5.92436233,2458.9,2458.4,4.02108549]
[1747767237227,1.29666233,2458.9,2458.8,0.81316]
[1747767237431,1.29666233,2458.9,2458.8,4.02095549]
[1747767237632,1.29666233,2458.9,2458.8,6.05442549]
[1747767237821,1.29666233,2458.9,2458.8,7.40022549]
[1747767238733,1.29666233,2458.9,2458.8,23.41822549]
[1747767240228,1.29666233,2458.9,2458.8,7.40022549]
[1747767240438,1.29666233,2458.9,2458.8,23.41522549]
[1747767240633,0.00367516,2459.1,2459.0,0.81309]
[1747767240839,0.00367516,2459.1,2459.0,4.02088549]
[1747767241032,0.00367516,2459.1,2459.0,6.05419049]
[1747767241832,2.03698016,2459.1,2458.8,1.3458]
[1747767242038,2.03698016,2459.1,2459.0,0.81309]
[1747767242729,2.03698016,2459.1,2458.9,16.015]
[1747767242929,2.03698016,2459.1,2458.6,16.01910451]
[1747767242930,0.81319,2458.7,2458.6,16.01910451]
[1747767243132,9.02099,2458.7,2458.6,0.00610451]
[1747767243434,11.054625,2458.7,2458.6,0.00610451]
[1747767244044,12.388225,2458.7,2458.6,0.00610451]
[1747767244338,7.388225,2458.7,2458.6,0.00610451]
[1747767246642,12.388225,2458.7,2458.6,0.00610451]
[1747767247239,6.575035,2458.7,2458.6,0.81932451]
[1747767247448,1.3719,2458.9,2458.8,0.81316]
[1747767247638,1.3719,2458.9,2458.8,20.03395549]
[1747767247846,5.65279001,2458.9,2458.8,16.82616]
[1747767248144,2.03347001,2458.9,2458.8,16.82616]
[1747767248339,2.84659001,2458.9,2458.8,16.013]
[1747767248545,3.46777001,2458.9,2458.8,16.013]
[1747767248738,3.46777001,2458.9,2458.8,16.82616]
[1747767249140,3.2078,2459.0,2458.9,0.81312]
[1747767249338,3.2078,2459.0,2458.9,2.15332]
[1747767249538,5.24119,2459.0,2458.9,2.15332]
[1747767249743,1.37207516,2459.1,2459.0,0.81309]
[1747767249944,1.37207516,2459.1,2459.0,5.36108549]
[1747767250145,0.00367516,2459.1,2459.0,5.36108549]
[1747767250644,0.00367516,2459.1,2459.0,7.39439049]
[1747767251538,2.03698016,2459.1,2459.0,4.186595]
[1747767251846,2.03698016,2459.1,2459.0,2.15329]
[1747767252248,3.46978016,2459.1,2459.0,2.15329]
[1747767252440,0.00367516,2459.1,2459.0,7.39439049]
[1747767253748,0.00367516,2459.1,2459.0,5.36108549]
[1747767253941,0.00367516,2459.1,2459.0,4.02088549]
[1747767254240,0.00367516,2459.1,2459.0,19.90888549]
[1747767254446,1.43647516,2459.1,2459.0,19.90888549]
[1747767254838,3.46978016,2459.1,2459.0,16.70109]
[1747767259150,3.46978016,2459.1,2458.8,1.4001]
[1747767259351,0.81312,2458.9,2458.8,2.21322]
[1747767259643,2.03698016,2459.1,2459.0,0.81309]
[1747767259848,0.00367516,2459.1,2459.0,4.02088549]
[1747767260050,0.00367516,2459.1,2459.0,7.42719049]
[1747767261152,2.03698016,2459.1,2459.0,1.373]
[1747767261355,0.81309,2459.0,2458.9,0.8131]
[1747767261551,5.42319,2459.0,2458.9,16.7001]
[1747767261854,7.45658,2459.0,2458.9,16.7001]
[1747767262045,6.64349,2459.0,2458.9,16.7001]
[1747767262250,7.45658,2459.0,2458.9,16.7001]
[1747767262447,0.81319,2458.8,2458.7,16.70017]
[1747767262648,8.67623,2459.0,2458.8,0.81316]
[1747767262649,3.48594,2458.9,2458.8,0.81316]
[1747767262957,0.81316,2458.8,2458.7,16.70016]
[1747767263253,4.70631,2458.9,2458.8,0.81316]
[1747767263557,0.00367516,2459.1,2459.0,0.81309]
[1747767263758,0.00367516,2459.1,2459.0,4.02088549]
[1747767263951,2.03698016,2459.1,2459.0,4.02088549]
[1747767265055,2.03698016,2459.1,2459.0,19.90788549]
[1747767267254,0.00367516,2459.1,2459.0,19.90788549]
[1747767267561,0.81309,2459.0,2458.9,0.8131]
[1747767267856,3.2078,2459.0,2458.9,4.02089549]
[1747767268058,2.03339,2459.0,2458.9,4.02089549]
[1747767268455,0.00367516,2459.1,2459.0,0.81309]
[1747767268660,0.00367516,2459.1,2459.0,5.42578549]
[1747767268850,0.00367516,2459.1,2459.0,7.45909049]
[1747767269852,0.00367516,2459.1,2459.0,11.95499049]
[1747767269853,5.16e-06,2459.1,2459.0,11.95499049]
[1747767270254,5.16e-06,2459.1,2459.0,16.95499049]
[1747767270960,5.16e-06,2459.1,2459.0,24.63419049]
[1747767271156,5.16e-06,2459.1,2459.0,25.13391551]
[1747767271357,5.16e-06,2459.1,2459.0,9.24691551]
[1747767271659,5.16e-06,2459.1,2459.0,25.13391551]
[1747767271861,2.84637016,2459.1,2459.0,1.90462502]
[1747767272056,5.16e-06,2459.1,2459.0,2.71771502]
[1747767272256,5.16e-06,2459.1,2459.0,16.16661551]
[1747767272452,5.16e-06,2459.1,2459.0,11.16661551]
[1747767272658,5.16e-06,2459.1,2459.0,10.66689049]
[1747767272858,5.16e-06,2459.1,2459.0,7.45909049]
[1747767273261,5.16e-06,2459.1,2459.0,23.34509049]
[1747767274165,5.16e-06,2459.1,2459.0,23.59836389]
[1747767277267,5.16e-06,2459.1,2459.0,26.80616389]
[1747767278557,5.16e-06,2459.1,2459.0,31.55289049]
[1747767278866,5.16e-06,2459.1,2459.0,26.55289049]
[1747767279355,5.16e-06,2459.1,2459.0,23.34509049]
[1747767279559,5.16e-06,2459.1,2459.0,26.55289049]
[1747767280064,5.16e-06,2459.1,2459.0,27.06020302]
[1747767280366,5.16e-06,2459.1,2459.0,23.85240302]
[1747767280769,5.16e-06,2459.1,2459.0,27.06020302]
[1747767280965,5.16e-06,2459.1,2459.0,32.06020302]
[1747767281562,5.16e-06,2459.1,2459.0,11.17420302]
[1747767281763,5.16e-06,2459.1,2459.0,40.73520302]
[1747767282863,5.16e-06,2459.1,2459.0,37.52740753]
[1747767283067,5.16e-06,2459.1,2459.0,23.80440302]
[1747767283465,2.03331016,2459.1,2459.0,18.56330253]
[1747767283768,3.40381016,2459.1,2459.0,18.56330253]
[1747767283969,3.40381016,2459.1,2459.0,18.30942528]
[1747767286067,3.40381016,2459.1,2459.0,18.05599]
[1747767287280,8.40381016,2459.1,2458.8,0.25343528]
[1747767287473,4.02092,2458.9,2458.8,0.25343528]
[1747767287973,51.85439001,2458.9,2458.8,0.25343528]
[1747767288575,51.85439001,2458.9,2458.8,1.06659528]
[1747767288877,51.04127001,2458.9,2458.8,0.81316]
[1747767289075,51.85439001,2458.9,2458.8,0.81316]
[1747767289274,0.81318,2458.8,2458.7,0.81317]
[1747767289475,0.81319,2458.7,2458.6,0.00610451]
[1747767289871,4.276325,2458.7,2458.6,0.00610451]
[1747767290479,4.276325,2458.7,2458.6,0.81932451]
[1747767290681,5.590025,2458.7,2458.6,0.81932451]
[1747767292077,2.033635,2458.7,2458.6,4.02712]
[1747767292285,3.2078,2458.9,2458.8,0.81316]
[1747767292478,3.2078,2458.9,2458.8,4.02095549]
[1747767292479,5.24127001,2458.9,2458.8,4.02095549]
[1747767292676,3.2078,2458.9,2458.8,6.05442549]
[1747767293783,5.16e-06,2459.1,2459.0,0.81309]
[1747767293984,5.16e-06,2459.1,2459.0,4.02088549]
[1747767294784,2.84638016,2459.1,2459.0,0.81309]
[1747767294986,0.81313,2458.9,2458.8,0.81313]
[1747767295182,3.2078,2458.9,2458.6,0.25953979]
[1747767295378,2.24258,2458.8,2458.7,0.81319]
[1747767295575,3.46295501,2458.8,2458.7,0.81319]
[1747767295780,4.27611501,2458.8,2458.7,0.81319]
[1747767295982,3.46295501,2458.8,2458.6,1.29920451]
[1747767296186,3.462995,2458.8,2458.7,4.02098549]
[1747767296686,3.462995,2458.8,2458.6,1.29920451]
[1747767296687,0.81319,2458.7,2458.6,2.11241451]
[1747767296879,2.24259,2458.7,2458.6,0.81931451]
[1747767297081,4.276225,2458.7,2458.6,0.81931451]
[1747767297277,3.463035,2458.7,2458.6,0.81931451]
[1747767297677,4.786835,2458.7,2458.6,0.81932451]
[1747767300887,5.600025,2458.7,2458.6,0.81932451]
[1747767301389,5.600025,2458.7,2458.6,0.00610451]
[1747767301684,0.8133,2458.4,2458.3,0.81331]
[1747767301891,3.2078,2458.4,2458.3,2.10372]
[1747767302083,3.2078,2458.4,2458.3,21.15251549]
[1747767302385,3.2078,2458.4,2458.3,15.841]
[1747767302386,6.054975,2458.4,2458.3,15.841]
[1747767302688,6.054975,2458.4,2457.9,0.50731253]
[1747767302689,2.03335,2458.3,2457.9,0.50731253]
[1747767302992,15.60175861,2458.4,2457.0,16.89170983]
[1747767302993,0.81359,2457.5,2457.2,0.81366]
[1747767303182,4.02139,2457.5,2457.4,0.67525268]
[1747767303378,3.2078,2457.6,2457.5,0.81359]
[1747767303689,3.2078,2457.9,2457.8,0.81349]
[1747767304089,3.2078,2457.9,2457.8,6.05558549]
[1747767304289,3.2078,2457.9,2457.8,4.02128549]
[1747767304491,3.2078,2457.9,2457.8,6.05558549]
[1747767305084,5.2421,2457.9,2457.8,15.842]
[1747767305293,5.2421,2457.9,2457.8,16.65549]
[1747767305789,6.6106,2457.9,2457.8,16.65549]
[1747767306795,7.42405,2457.9,2457.8,15.842]
[1747767306984,6.6106,2457.9,2457.5,1.4058]
[1747767307191,4.5763,2457.9,2457.8,0.81349]
[1747767307493,6.61072,2457.9,2457.8,0.81349]
[1747767307685,6.61072,2457.9,2457.8,2.21929]
[1747767307884,5.24222,2457.9,2457.8,5.42708549]
[1747767308190,0.00610451,2458.1,2458.0,0.81342]
[1747767308386,2.04023951,2458.1,2458.0,4.02121549]
[1747767308981,0.00610451,2458.1,2458.0,6.05535049]
[1747767309396,4.51e-06,2458.1,2458.0,9.26315049]
[1747767309590,4.51e-06,2458.1,2458.0,6.41559549]
[1747767309889,2.03401,2457.5,2456.3,2.03496]
[1747767310082,3.2078,2456.4,2456.3,2.19586]
[1747767310286,5.23583049,2456.4,2456.3,1.3819]
[1747767310492,0.81398,2456.3,2456.2,0.77172939]
[1747767310690,3.36033049,2456.3,2456.2,0.77172939]
[1747767310881,2.02803049,2456.3,2456.2,0.77172939]
[1747767311082,2.02803049,2456.3,2456.2,1.3819]
[1747767311286,2.02803049,2456.3,2456.0,0.00610451]
[1747767311287,0.81405,2456.1,2456.0,0.00610451]
[1747767311493,6.04988049,2456.1,2456.0,0.00610451]
[1747767311689,11.04988049,2456.1,2456.0,0.00610451]
[1747767311888,0.81415,2455.8,2455.7,3.22077278]
[1747767312095,6.04387598,2455.8,2455.7,3.22077278]
[1747767312287,11.04387598,2455.8,2455.7,3.22077278]
[1747767312684,5.22972598,2455.8,2455.7,4.03495278]
[1747767312890,3.2078,2456.1,2456.0,0.81406]
[1747767313088,5.22972598,2456.1,2455.8,1.3753]
[1747767313287,3.2078,2456.1,2456.0,0.81408]
[1747767313695,4.38094582,2456.9,2456.0,10.24359]
[1747767313892,2.02192598,2456.7,2456.3,3.2078]
[1747767314091,2.02192598,2456.7,2456.5,0.8139]
[1747767314291,4.38094582,2456.9,2456.4,17.1003]
[1747767314500,1.17314582,2456.9,2456.8,0.81382]
[1747767314993,1.17314582,2456.9,2456.8,2.848945]
[1747767315397,3.2078,2457.0,2456.8,2.035125]
[1747767315598,5.22972598,2457.0,2456.9,15.783]
[1747767315901,0.81384,2456.8,2456.5,15.783]
[1747767316096,2.02192598,2456.5,2456.4,1.3193]
[1747767316399,2.02192598,2456.5,2456.4,17.91625]
[1747767316599,3.2078,2456.7,2456.6,0.81388]
[1747767317099,3.2078,2456.7,2456.6,2.84917]
[1747767317698,2.20328,2457.0,2456.7,0.81383]
[1747767317899,5.22972598,2456.8,2456.7,2.13273]
[1747767319599,3.2078,2456.8,2456.7,2.13273]
[1747767319805,1.3895,2457.0,2456.9,0.81378]
[1747767320197,3.41142598,2457.0,2456.9,0.81378]
[1747767320505,3.41142598,2457.0,2456.4,1.3193]
[1747767320803,4.02166,2456.7,2456.5,17.1666]
[1747767321003,3.2078,2456.7,2456.6,0.81388]
[1747767321395,5.22972598,2456.7,2456.6,0.81388]
[1747767321707,1.3756,2457.0,2456.9,0.81378]
[1747767321905,3.21390451,2457.1,2457.0,0.81375]
[1747767322098,4.51e-06,2457.1,2457.0,16.59775]
[1747767322302,4.51e-06,2457.1,2457.0,23.63271]
[1747767322509,4.51e-06,2457.1,2457.0,26.14091]
[1747767324310,4.51e-06,2457.1,2457.0,21.14091]
[1747767324609,4.51e-06,2457.1,2457.0,26.14091]
[1747767326015,3.2078,2458.5,2457.0,2.03496]
[1747767326216,4.05688386,2456.7,2456.1,3.2078]
[1747767326403,4.05688386,2456.5,2456.4,0.81395]
[1747767326714,4.05688386,2456.6,2456.2,1.3081]
[1747767327213,0.00610451,2456.6,2456.4,0.81393]
[1747767327409,3.2078,2457.7,2457.1,0.81371]
[1747767327717,4.05688386,2456.9,2456.8,3.2078]
[1747767327907,0.8137,2457.2,2456.8,20.3875]
[1747767328211,3.2078,2457.4,2456.8,1.3967]
[1747767328419,4.05688386,2457.2,2456.9,16.59677]
[1747767328716,4.05688386,2457.2,2457.0,1.3967]
[1747767329103,4.05688386,2457.1,2457.0,1.3967]
[1747767329709,4.05688386,2457.1,2457.0,3.43166]
[1747767329911,7.26468386,2457.1,2456.9,15.783]
[1747767330111,4.87063386,2457.0,2456.9,15.783]
[1747767330312,4.05688386,2457.0,2456.9,15.783]
[1747767330514,4.87063386,2457.0,2456.9,15.783]
[1747767331313,4.05688386,2457.0,2456.5,1.3967]
[1747767331514,4.87076386,2456.6,2456.5,15.783]
[1747767331709,4.05688386,2456.6,2456.3,1.3254]
[1747767331909,4.87086386,2456.3,2456.2,0.00610451]
[1747767332112,4.87086386,2456.3,2456.2,15.78910451]
[1747767332320,9.87086386,2456.3,2456.2,0.00610451]
[1747767335121,9.87086386,2456.3,2456.2,4.51e-06]
[1747767335518,0.81422,2455.6,2455.5,15.785]
[1747767335817,0.81435,2455.2,2455.1,0.33661849]
[1747767336017,4.87121935,2455.3,2455.1,16.12361849]
[1747767336222,5.46087935,2455.3,2455.2,0.81435]
[1747767336422,0.81427,2455.5,2455.4,0.81428]
[1747767336616,4.05687935,2455.3,2455.2,2.19835451]
[1747767337011,4.87119935,2455.3,2455.2,1.38400451]
[1747767337319,6.21729935,2455.3,2455.2,0.00610451]
[1747767337515,2.48150451,2455.7,2455.4,0.81426]
[1747767337714,0.81424,2455.6,2455.2,17.10250451]
[1747767338020,0.81428,2455.4,2455.3,1.3094]
[1747767338217,4.87115935,2455.4,2455.3,1.3094]
[1747767338414,6.21725935,2455.4,2455.3,1.3094]
[1747767338615,0.81432,2455.3,2455.2,15.79310451]
[1747767338917,2.16042,2455.3,2455.2,15.79310451]
[1747767339314,6.21729935,2455.3,2455.2,15.79310451]
[1747767340121,4.05687935,2455.3,2455.2,15.79310451]
[1747767340320,2.21323,2455.6,2455.2,21.03735451]
[1747767340515,2.21323,2455.6,2455.3,1.3607]
[1747767340715,5.45587935,2455.6,2455.3,1.3607]
[1747767341020,2.21324,2455.6,2455.4,0.81426]
[1747767341317,0.00610451,2455.7,2455.5,1.3607]
[1747767341624,0.00610451,2455.7,2455.6,0.81422]
[1747767341823,1.17314582,2456.5,2456.4,0.81395]
[1747767341824,3.2078,2456.5,2456.4,0.81395]
[1747767342212,1.17314582,2456.8,2456.7,0.81385]
[1747767342417,1.17314582,2456.8,2456.7,16.56085]
[1747767342720,1.17314582,2456.8,2456.7,0.81385]
[1747767342926,2.07687102,2456.8,2456.7,16.56085]
[1747767343122,1.17314582,2456.8,2456.7,16.56085]
[1747767343816,0.65279378,2457.0,2456.9,0.81378]
[1747767344225,1.55651898,2457.0,2456.9,0.81378]
[1747767344618,0.65279378,2457.0,2456.9,0.81378]
[1747767344815,2.37028898,2457.0,2456.8,0.81381]
[1747767345015,1.3656,2456.9,2456.8,0.81381]
[1747767345214,2.2693252,2456.9,2456.8,16.55881]
[1747767345428,2.2693252,2456.9,2456.8,18.593935]
[1747767345627,1.3656,2456.9,2456.8,18.593935]
[1747767345828,2.2693252,2456.9,2456.8,18.593935]
[1747767346122,2.2693252,2456.9,2456.6,1.2887]
[1747767346324,0.9037252,2456.7,2456.6,2.10258]
[1747767346525,0.9037252,2456.7,2456.6,0.81388]
[1747767346829,2.2993252,2456.7,2456.6,0.81388]
[1747767347328,0.81388,2456.6,2456.5,15.75110451]
[1747767347531,3.1132052,2456.6,2456.5,15.75110451]
[1747767347828,3.1132052,2456.6,2456.5,0.00610451]
[1747767348027,8.1132052,2456.6,2456.5,0.00610451]
[1747767348222,3.1132052,2456.6,2456.5,0.00610451]
[1747767350331,8.1132052,2456.6,2456.5,0.00610451]
[1747767351723,7.20948,2456.6,2456.5,0.00610451]
[1747767351927,8.1132052,2456.6,2456.5,0.00610451]
[1747767352331,2.03497,2456.4,2455.7,3.2078]
[1747767352521,0.9037252,2455.8,2455.7,0.81416]
[1747767353121,3.0451752,2455.8,2455.6,15.744]